bitfinex/quotes_SOLUSD_20260220
["timestamp","ask_amount","ask_price","bid_price","bid_amount"]
[1771600664701,1.33004174,83.309,83.275,54.12]
[1771600665106,1.33004174,83.323,83.29,18.55386952]
[1771600665404,18.55386952,83.31,83.28,18.55386952]
[1771600665722,1.33004174,83.309,83.28,18.55386952]
[1771600666025,1.33004174,83.309,83.275,54.12]
[1771600666223,0.25696,83.372,83.26,21.28086952]
[1771600666224,18.55386952,83.29,83.26,21.28086952]
[1771600666426,1.33004174,83.303,83.27,18.55386952]
[1771600666608,1.33004174,83.299,83.261,12.01042504]
[1771600666809,1.33004174,83.299,83.27,18.55386952]
[1771600667019,18.55386952,83.31,83.27,18.55386952]
[1771600667020,1.33004174,83.308,83.27,18.55386952]
[1771600667207,1.33004174,83.308,83.28,18.55386952]
[1771600667405,1.33004174,83.308,83.27,18.55386952]
[1771600667707,18.55386952,83.32,83.29,18.55386952]
[1771600668241,1.33004174,83.329,83.263,90.07602415]
[1771600668403,1.33004174,83.328,83.29,18.55386952]
[1771600668735,18.55386952,83.34,83.31,18.55386952]
[1771600669103,18.55386952,83.33,83.263,246.20779936]
[1771600669336,1.33004174,83.329,83.3,18.55386952]
[1771600669603,11.99627724,83.36,83.263,246.20779936]
[1771600669604,18.55386952,83.37,83.32,18.55386952]
[1771600669808,47.94852937,83.423,83.36,18.55386952]
[1771600669809,1.33004174,83.385,83.36,18.55386952]
[1771600670008,1.33004174,83.385,83.321,0.28432314]
[1771600670009,1.33004174,83.385,83.35,18.55386952]
[1771600670223,1.33004174,83.37,83.34,18.55386952]
[1771600670403,1.33004174,83.369,83.34,18.55386952]
[1771600670939,1.33004174,83.369,83.33,18.55386952]
[1771600671236,1.33004174,83.369,83.34,18.55386952]
[1771600671435,0.25696,83.372,83.35,18.55386952]
[1771600671643,0.25696,83.372,83.323,0.28432314]
[1771600672139,0.25696,83.372,83.322,42.00571277]
[1771600672140,0.2,83.39,83.361,41.98606062]
[1771600672306,47.92394984,83.466,83.361,41.98606062]
[1771600672307,1.33004174,83.441,83.381,0.28432314]
[1771600672511,47.90738227,83.495,83.361,233.92233774]
[1771600672512,1.33004174,83.469,83.43,18.55386952]
[1771600672714,1.33004174,83.477,83.44,18.55386952]
[1771600672922,11.9792041,83.478,83.361,293.90242435]
[1771600672923,1.33004174,83.449,83.362,0.28432314]
[1771600673102,1.33004174,83.419,83.38,18.55386952]
[1771600673305,1.33004174,83.389,83.35,18.55386952]
[1771600673511,353.38652096,83.478,83.34,11.9990327]
[1771600673512,19.88391126,83.38,83.34,18.55386952]
[1771600676028,1.33004174,83.442,83.41,18.55386952]
[1771600676227,1.33004174,83.429,83.4,18.55386952]
[1771600676629,1.33004174,83.443,83.41,18.55386952]
[1771600676811,1.33004174,83.429,83.39,18.55386952]
[1771600677141,1.33004174,83.429,83.355,233.93917579]
[1771600677142,1.33004174,83.409,83.355,41.98908283]
[1771600677432,1.33004174,83.418,83.38,18.55386952]
[1771600677923,1.33004174,83.418,83.39,18.55386952]
[1771600678125,1.33004174,83.399,83.318,12.0022084]
[1771600678331,18.55386952,83.36,83.33,18.55386952]
[1771600678630,18.55386952,83.37,83.34,18.55386952]
[1771600678810,1.33004174,83.379,83.34,18.55386952]
[1771600679412,18.55386952,83.39,83.36,18.55386952]
[1771600679710,18.55386952,83.4,83.37,18.55386952]
[1771600679912,18.55386952,83.39,83.36,18.55386952]
[1771600680137,1.33004174,83.389,83.35,18.55386952]
[1771600680305,1.33004174,83.379,83.34,18.55386952]
[1771600680506,47.9476932,83.425,83.314,60.01392322]
[1771600680507,1.33004174,83.394,83.36,18.55386952]
[1771600680740,1.33004174,83.389,83.36,18.55386952]
[1771600680907,18.55386952,83.4,83.36,18.55386952]
[1771600681114,1.33004174,83.418,83.324,0.28432314]
[1771600681335,1.33004174,83.399,83.323,30.00371706]
[1771600681632,1.33004174,83.389,83.323,30.00371706]
[1771600681808,1.33004174,83.379,83.34,18.55386952]
[1771600682216,11.99357144,83.378,83.35,18.55386952]
[1771600682408,11.99357144,83.378,83.34,18.55386952]
[1771600682619,1.33004174,83.377,83.34,18.55386952]
[1771600683608,19.88391126,83.39,83.35,18.55386952]
[1771600683835,18.55386952,83.38,83.34,18.55386952]
[1771600684125,19.88391126,83.38,83.34,18.55386952]
[1771600684327,1.33004174,83.38,83.351,11.99745653]
[1771600684526,11.9934276,83.379,83.351,11.99745653]
[1771600684736,1.33004174,83.369,83.341,11.9988961]
[1771600685237,1.33004174,83.359,83.32,18.55386952]
[1771600685458,1.33004174,83.359,83.321,42.00621691]
[1771600685751,1.33004174,83.339,83.3,18.55386952]
[1771600685911,1.33004174,83.339,83.311,12.00321686]
[1771600686114,1.33004174,83.329,83.31,12.10332995]
[1771600686315,1.33004174,83.329,83.29,18.55386952]
[1771600686316,1.33004174,83.329,83.292,12.00595495]
[1771600686521,1.33004174,83.319,83.292,12.00595495]
[1771600686728,18.55386952,83.32,83.292,12.00595495]
[1771600687014,18.55386952,83.31,83.279,12.00781859]
[1771600687235,18.55386952,83.3,83.261,12.01042504]
[1771600687439,18.55386952,83.29,83.251,12.01186772]
[1771600687615,18.55386952,83.3,83.27,18.55386952]
[1771600687941,18.55386952,83.29,83.251,42.04153703]
[1771600688238,90.00468023,83.329,83.251,42.04153703]
[1771600688239,18.55386952,83.3,83.27,18.55386952]
[1771600688445,18.55386952,83.3,83.26,18.55386952]
[1771600688617,18.55386952,83.29,83.261,12.01042504]
[1771600688819,18.55386952,83.31,83.27,18.55386952]
[1771600689021,18.55386952,83.31,83.261,42.03648766]
[1771600689226,18.55386952,83.31,83.27,18.55386952]
[1771600689426,1.26226264,83.289,83.261,12.01042504]
[1771600689612,42.01035841,83.313,83.261,42.03648766]
[1771600689613,18.55386952,83.3,83.261,42.03648766]
[1771600689818,1.26226264,83.299,83.261,42.03648766]
[1771600690248,47.98375577,83.362,83.27,19.72602678]
[1771600690249,1.26226264,83.315,83.27,19.72602678]
[1771600690421,1.26226264,83.348,83.29,18.55386952]
[1771600690738,18.55386952,83.32,83.291,12.00609909]
[1771600690939,1.26226264,83.309,83.27,18.55386952]
[1771600691113,1.26226264,83.299,83.26,18.55386952]
[1771600691534,18.55386952,83.29,83.26,18.55386952]
[1771600692252,1.26226264,83.279,83.24,18.55386952]
[1771600692431,1.26226264,83.289,83.25,18.55386952]
[1771600692626,18.55386952,83.28,83.24,18.55386952]
[1771600692950,1.26226264,83.289,83.25,18.55386952]
[1771600693453,18.55386952,83.29,83.25,18.55386952]
[1771600693661,18.55386952,83.3,83.26,18.55386952]
[1771600693837,47.98701457,83.356,83.261,1.4564804]
[1771600693838,1.26226264,83.323,83.261,1.4564804]
[1771600694031,1.26226264,83.323,83.229,246.30837806]
[1771600694032,1.26226264,83.319,83.28,18.55386952]
[1771600694230,19.81613216,83.31,83.27,18.55386952]
[1771600694436,1.26226264,83.324,83.29,18.55386952]
[1771600694633,1.26226264,83.308,83.271,12.00898271]
[1771600694955,18.55386952,83.3,83.271,12.00898271]
[1771600695132,19.81613216,83.3,83.271,12.00898271]
[1771600695335,1.26226264,83.3,83.271,12.00898271]
[1771600695634,1.26226264,83.313,83.271,12.00898271]
[1771600695842,1.26226264,83.339,83.3,18.55386952]
[1771600696152,1.26226264,83.339,83.271,198.14821483]
[1771600696153,1.26226264,83.367,83.33,18.55386952]
[1771600696461,1.26226264,83.367,83.34,18.55386952]
[1771600696838,1.26226264,83.379,83.341,11.9988961]
[1771600697042,1.26226264,83.379,83.341,41.99613635]
[1771600697244,1.26226264,83.359,83.33,18.55386952]
[1771600697451,1.26226264,83.359,83.32,18.55386952]
[1771600697640,1.26226264,83.349,83.31,18.55386952]
[1771600697847,1.26226264,83.349,83.32,18.55386952]
[1771600698157,1.26226264,83.349,83.31,18.55386952]
[1771600698363,1.26226264,83.349,83.32,18.55386952]
[1771600698655,1.26226264,83.369,83.321,1.17215726]
[1771600698835,1.26226264,83.368,83.33,18.55386952]
[1771600699238,1.26226264,83.382,83.35,18.55386952]
[1771600699454,1.26226264,83.369,83.33,18.55386952]
[1771600699842,1.26226264,83.383,83.35,18.55386952]
[1771600700054,18.55386952,83.38,83.35,18.55386952]
[1771600700275,1.26226264,83.369,83.33,18.55386952]
[1771600700450,1.26226264,83.369,83.34,18.55386952]
[1771600700960,1.26226264,83.369,83.341,11.9988961]
[1771600701167,30.74581774,83.39,83.35,18.55386952]
[1771600701372,13.25425199,83.389,83.35,18.55386952]
[1771600701579,1.26226264,83.388,83.35,18.55386952]
[1771600701865,1.26226264,83.419,83.38,18.55386952]
[1771600702068,1.26226264,83.399,83.36,18.55386952]
[1771600702644,1.26226264,83.399,83.35,18.55386952]
[1771600702849,1.26226264,83.399,83.331,48.00095308]
[1771600702850,1.26226264,83.377,83.34,18.55386952]
[1771600703672,18.55386952,83.37,83.34,18.55386952]
[1771600703855,1.26226264,83.369,83.34,18.49220148]
[1771600704170,1.26226264,83.369,83.33,18.49220148]
[1771600704547,18.49220148,83.36,83.324,42.00470452]
[1771600704774,18.49220148,83.39,83.35,18.49220148]
[1771600704954,18.49220148,83.39,83.351,41.99109787]
[1771600705470,1.26226264,83.392,83.351,41.99109787]
[1771600705471,1.26226264,83.392,83.36,18.49220148]
[1771600705668,18.49220148,83.38,83.351,11.99745653]
[1771600705871,1.26226264,83.389,83.351,41.99109787]
[1771600706250,1.26226264,83.399,83.36,18.49220148]
[1771600706452,1.26226264,83.398,83.36,18.49220148]
[1771600706856,18.49220148,83.41,83.37,18.49220148]
[1771600707056,1.26226264,83.399,83.361,41.98606062]
[1771600707271,1.26226264,83.399,83.37,18.49220148]
[1771600707973,1.26226264,83.41,83.38,18.49220148]
[1771600708352,1.26226264,83.41,83.361,41.98606062]
[1771600708353,18.49220148,83.4,83.361,41.98606062]
[1771600708555,18.49220148,83.39,83.351,1.17215726]
[1771600708775,1.26226264,83.379,83.349,11.99774442]
[1771600708951,1.26226264,83.379,83.35,18.49220148]
[1771600710273,47.95096082,83.419,83.346,29.99528066]
[1771600710274,1.26226264,83.409,83.37,18.49220148]
[1771600710476,1.26226264,83.408,83.38,18.49220148]
[1771600710677,19.75446412,83.4,83.361,1.17215726]
[1771600710862,1.26226264,83.399,83.36,18.49220148]
[1771600711186,1.26226264,83.397,83.361,11.99601732]
[1771600711363,11.98767666,83.419,83.38,18.49220148]
[1771600711673,11.98767666,83.419,83.39,18.49220148]
[1771600711881,13.2499393,83.419,83.38,18.49220148]
[1771600712062,1.26226264,83.419,83.39,18.49220148]
[1771600712258,11.98623979,83.429,83.39,18.49220148]
[1771600712458,11.98623979,83.429,83.4,18.49220148]
[1771600712678,19.75446412,83.42,83.38,18.49220148]
[1771600712878,1.26226264,83.419,83.38,18.49220148]
[1771600713069,1.26226264,83.417,83.381,11.99313992]
[1771600713582,11.98782037,83.418,83.361,11.99601732]
[1771600713583,18.49220148,83.4,83.361,11.99601732]
[1771600713761,18.49220148,83.4,83.361,41.98606062]
[1771600713961,19.75446412,83.41,83.37,18.49220148]
[1771600714175,1.26226264,83.41,83.38,18.49220148]
[1771600714385,1.26226264,83.41,83.39,18.49220148]
[1771600714565,19.75446412,83.41,83.37,18.49220148]
[1771600714956,1.26226264,83.41,83.39,18.49220148]
[1771600715163,1.26226264,83.41,83.391,11.99170174]
[1771600715392,1.26226264,83.428,83.391,11.99170174]
[1771600715764,19.75446412,83.44,83.4,18.49220148]
[1771600716080,47.90652803,83.496,83.392,1.17215726]
[1771600716081,1.26226264,83.439,83.41,18.49220148]
[1771600716283,1.26226264,83.439,83.4,18.49220148]
[1771600716477,1.26226264,83.439,83.41,18.49220148]
[1771600716784,11.98351068,83.448,83.41,18.49220148]
[1771600716979,1.26226264,83.459,83.42,18.49220148]
[1771600717163,1.22852593,83.457,83.421,11.98738926]
[1771600717359,1.22852593,83.462,83.43,18.49220148]
[1771600717673,47.88857894,83.528,83.44,18.49220148]
[1771600717674,1.22852593,83.475,83.44,18.49220148]
[1771600717866,1.22852593,83.475,83.44,11.82724398]
[1771600718173,1.22852593,83.475,83.45,11.82724398]
[1771600718586,1.22852593,83.489,83.45,11.82724398]
[1771600718972,11.82724398,83.48,83.45,11.82724398]
[1771600719170,41.90964281,83.513,83.421,29.96847316]
[1771600719171,1.22852593,83.459,83.421,29.96847316]
[1771600719467,1.22852593,83.459,83.422,41.95535949]
[1771600719690,1.22852593,83.449,83.422,11.98724557]
[1771600719898,1.22852593,83.449,83.4,11.82724398]
[1771600720067,1.22852593,83.449,83.41,11.82724398]
[1771600720385,1.22852593,83.439,83.4,11.82724398]
[1771600722186,1.22852593,83.489,83.46,11.82724398]
[1771600722571,1.22852593,83.506,83.47,11.82724398]
[1771600723084,1.22852593,83.506,83.48,11.82724398]
[1771600723291,1.22852593,83.506,83.459,1.27229699]
[1771600723292,1.22852593,83.506,83.47,11.82724398]
[1771600723489,11.97435593,83.512,83.48,11.82724398]
[1771600723701,1.22852593,83.509,83.47,11.82724398]
[1771600724002,1.22852593,83.509,83.466,41.93324227]
[1771600724203,1.22852593,83.499,83.47,11.82724398]
[1771600724491,1.22852593,83.499,83.454,1.27229699]
[1771600724664,41.91017353,83.512,83.47,11.82724398]
[1771600724665,1.22852593,83.509,83.47,11.82724398]
[1771600724870,11.82724398,83.5,83.47,11.82724398]
[1771600725180,11.82724398,83.49,83.453,29.95663086]
[1771600725684,11.82724398,83.5,83.458,1.27229699]
[1771600725987,11.97484025,83.509,83.47,13.09954097]
[1771600726164,13.20336618,83.509,83.47,13.09954097]
[1771600726370,1.22852593,83.522,83.48,13.09954097]
[1771600726570,11.82724398,83.52,83.481,1.27229699]
[1771600726787,1.22852593,83.53,83.481,1.27229699]
[1771600727096,1.22852593,83.53,83.46,11.82724398]
[1771600727097,13.05576991,83.53,83.49,1.27229699]
[1771600727266,11.82724398,83.54,83.501,1.27229699]
[1771600727481,17.76933024,83.542,83.492,0.28432314]
[1771600727482,17.76933024,83.542,83.513,1.27229699]
[1771600727772,11.82724398,83.53,83.499,0.28432314]
[1771600727992,17.76933024,83.542,83.511,1.27229699]
[1771600728587,12.21258212,83.542,83.521,1.27229699]
[1771600728890,6.62147493,83.542,83.52,11.82724398]
[1771600729291,6.62147493,83.542,83.51,11.82724398]
[1771600729489,1.384156,83.539,83.501,11.97590448]
[1771600729696,11.82724398,83.54,83.501,41.91566568]
[1771600729988,1e-08,83.542,83.51,11.82724398]
[1771600730186,1e-08,83.542,83.52,11.82724398]
[1771600730386,1e-08,83.56,83.53,11.82724398]
[1771600730589,11.82724398,83.59,83.55,11.82724398]
[1771600730781,6.25680181,83.617,83.56,11.82724398]
[1771600731088,23.98467769,83.63,83.581,1.27229699]
[1771600731292,11.82724398,83.62,83.57,11.82724398]
[1771600731476,11.82724398,83.6,83.561,11.96730532]
[1771600731671,11.82724398,83.6,83.561,41.88556862]
[1771600731988,11.82724398,83.6,83.561,11.96730532]
[1771600732370,11.82724398,83.61,83.562,1.27229699]
[1771600732566,1.22852593,83.619,83.58,11.82724398]
[1771600732802,1.22852593,83.619,83.575,0.14216157]
[1771600733093,1.22852593,83.619,83.57,11.82724398]
[1771600733279,1.22852593,83.619,83.58,11.82724398]
[1771600733470,1.22852593,83.619,83.57,1.27229699]
[1771600733471,1.22852593,83.619,83.59,11.82724398]
[1771600733672,0.2,83.63,83.6,11.82724398]
[1771600733885,11.95757452,83.629,83.59,11.82724398]
[1771600734076,11.95757452,83.629,83.582,1.27229699]
[1771600734077,11.82724398,83.62,83.582,1.27229699]
[1771600734283,1.22852593,83.628,83.59,11.82724398]
[1771600734485,1.22852593,83.628,83.6,11.82724398]
[1771600734689,1.22852593,83.628,83.581,11.96444167]
[1771600734883,0.2,83.63,83.556,1.27229699]
[1771600734884,1.22852593,83.613,83.571,11.96587332]
[1771600735084,12.02724398,83.63,83.591,1.27229699]
[1771600735391,12.02724398,83.63,83.59,11.82724398]
[1771600735392,0.2,83.64,83.61,11.82724398]
[1771600735570,0.2,83.64,83.602,41.86502714]
[1771600735891,12.02724398,83.64,83.61,11.82724398]
[1771600736194,0.2,83.64,83.61,11.82724398]
[1771600736369,0.2,83.64,83.611,1.27229699]
[1771600736572,24.06152641,83.7,83.602,41.86502714]
[1771600736573,12.02724398,83.67,83.631,1.27229699]
[1771600736777,0.2,83.67,83.64,11.82724398]
[1771600737076,1.22852593,83.668,83.63,11.82724398]
[1771600737274,1.22852593,83.639,83.61,11.82724398]
[1771600737477,1.22852593,83.639,83.596,1.27229699]
[1771600737478,11.82724398,83.63,83.597,11.96215175]
[1771600737785,1.22852593,83.637,83.6,11.82724398]
[1771600738190,1.22852593,83.637,83.61,11.82724398]
[1771600738485,11.82724398,83.63,83.597,11.96215175]
[1771600738697,1.22852593,83.669,83.63,11.82724398]
[1771600738882,0.2,83.67,83.65,11.82724398]
[1771600739086,0.2,83.67,83.64,11.82724398]
[1771600739087,1.22852593,83.668,83.64,11.82724398]
[1771600739271,1.22852593,83.659,83.63,11.82724398]
[1771600739472,11.95185791,83.669,83.64,11.82724398]
[1771600739700,1.22852593,83.668,83.63,11.82724398]
[1771600739880,1.22852593,83.668,83.64,11.82724398]
[1771600740278,1.22852593,83.668,83.623,1.27229699]
[1771600740279,1.22852593,83.668,83.63,11.82724398]
[1771600740478,1.22852593,83.668,83.64,11.82724398]
[1771600740678,0.2,83.67,83.64,11.82724398]
[1771600741088,1.22852593,83.669,83.64,11.82724398]
[1771600741286,1.22852593,83.668,83.63,11.82724398]
[1771600741594,1.22852593,83.668,83.622,41.85501422]
[1771600741595,1.22852593,83.704,83.663,1.27229699]
[1771600741798,11.94700309,83.703,83.68,11.82724398]
[1771600742197,1.22852593,83.704,83.68,11.82724398]
[1771600742414,1.22852593,83.703,83.67,11.82724398]
[1771600742893,1.22852593,83.699,83.661,11.95295366]
[1771600743195,1.22852593,83.689,83.641,11.95585896]
[1771600743494,1.22852593,83.679,83.65,11.82724398]
[1771600743695,1.22852593,83.679,83.651,11.95442971]
[1771600743998,1.22852593,83.69,83.66,11.82724398]
[1771600744196,1.22852593,83.689,83.67,11.82724398]
[1771600744492,11.82724398,83.7,83.67,11.82724398]
[1771600744674,1.22852593,83.702,83.67,11.82724398]
[1771600744878,1.22852593,83.699,83.67,11.82724398]
[1771600745495,1.22852593,83.699,83.68,11.82724398]
[1771600745705,0.25696,83.705,83.681,11.95014399]
[1771600746079,0.25696,83.705,83.69,11.82724398]
[1771600746278,1.30617128,83.739,83.682,1.30870396]
[1771600746483,1.30617128,83.738,83.7,11.82724398]
[1771600746680,0.2,83.76,83.731,1.30870396]
[1771600747009,12.03024745,83.81,83.7,11.82724398]
[1771600747010,12.03024745,83.81,83.751,1.34081188]
[1771600747182,12.03024745,83.81,83.79,11.82724398]
[1771600747382,1.28738904,83.809,83.758,0.28432314]
[1771600747580,1.28738904,83.809,83.7,23.63019263]
[1771600747581,1.28738904,83.787,83.75,11.82724398]
[1771600747838,1.28738904,83.759,83.715,11.94529056]
[1771600748109,1.28738904,83.759,83.705,1.34081188]
[1771600748402,1.28738904,83.769,83.73,11.82724398]
[1771600748798,1.28738904,83.759,83.711,1.34081188]
[1771600749107,11.82724398,83.75,83.72,11.82724398]
[1771600749491,1.28738904,83.749,83.711,1.34081188]
[1771600749811,1.28738904,83.739,83.7,11.82724398]
[1771600750016,11.94058365,83.748,83.691,29.87147351]
[1771600750017,41.79204278,83.748,83.691,1.34081188]
[1771600750306,71.59152635,83.809,83.64,11.82724398]
[1771600750307,11.82724398,83.77,83.731,1.34081188]
[1771600750491,11.82724398,83.75,83.72,11.82724398]
[1771600750687,1.28738904,83.749,83.71,11.82724398]
[1771600750998,1.28738904,83.749,83.72,11.82724398]
[1771600751588,1.28738904,83.749,83.71,13.16805586]
[1771600751789,11.82724398,83.74,83.696,1.34081188]
[1771600752002,1.28738904,83.739,83.7,11.82724398]
[1771600752215,1.28738904,83.729,83.69,11.82724398]
[1771600752514,11.82724398,83.73,83.691,1.34081188]
[1771600753209,1.28738904,83.739,83.7,11.82724398]
[1771600753603,1.28738904,83.739,83.71,11.82724398]
[1771600754003,13.22934677,83.739,83.711,11.94586135]
[1771600754200,1.28738904,83.751,83.711,11.94586135]
[1771600754402,1.28738904,83.751,83.7,13.28820103]
[1771600754403,11.82724398,83.74,83.7,13.28820103]
[1771600754608,1.28738904,83.739,83.7,25.11544501]
[1771600754919,1.28738904,83.739,83.71,11.82724398]
[1771600755121,1.28738904,83.739,83.701,1.34081188]
[1771600755340,1.28738904,83.739,83.71,11.82724398]
[1771600755613,11.82724398,83.76,83.72,11.82724398]
[1771600755817,11.82724398,83.75,83.72,11.82724398]
[1771600756014,11.82724398,83.75,83.712,1.34081188]
[1771600756015,1.28738904,83.739,83.71,11.82724398]
[1771600756218,1.28738904,83.739,83.687,29.87313541]
[1771600756219,1.28738904,83.739,83.7,23.77467528]
[1771600756409,11.82724398,83.73,83.7,23.77467528]
[1771600756610,1.28738904,83.739,83.7,23.77467528]
[1771600757621,1.28738904,83.739,83.671,1.34081188]
[1771600757822,11.82724398,83.72,83.68,11.82724398]
[1771600758024,11.82724398,83.7,83.656,1.34081188]
[1771600758201,1.28738904,83.68,83.64,11.82724398]
[1771600758401,1.28738904,83.659,83.621,11.9587185]
[1771600758808,11.82724398,83.64,83.61,11.82724398]
[1771600759011,11.82724398,83.67,83.63,11.82724398]
[1771600759310,11.82724398,83.67,83.621,1.34081188]
[1771600759311,11.82724398,83.65,83.621,1.34081188]
[1771600759506,1.28738904,83.639,83.597,11.96202092]
[1771600759820,11.82724398,83.7,83.62,11.82724398]
[1771600759821,11.82724398,83.66,83.62,11.82724398]
[1771600760013,11.82724398,83.71,83.653,1.34081188]
[1771600760322,11.82724398,83.71,83.652,41.84000381]
[1771600760323,1.28738904,83.699,83.66,11.82724398]
[1771600760536,1.28738904,83.699,83.67,11.82724398]
[1771600760709,1.28738904,83.715,83.68,11.82724398]
[1771600761027,11.94232194,83.736,83.7,11.82724398]
[1771600761222,1.28738904,83.735,83.689,1.34081188]
[1771600761426,1.28738904,83.729,83.676,1.34081188]
[1771600761614,1.28738904,83.719,83.69,11.82724398]
[1771600761809,11.82724398,83.73,83.7,11.82724398]
[1771600762027,11.82724398,83.72,83.69,11.82724398]
[1771600762525,11.94329324,83.729,83.67,11.82724398]
[1771600762526,1.28738904,83.709,83.67,11.82724398]
[1771600762842,1.28738904,83.709,83.68,11.82724398]
[1771600763030,11.82724398,83.7,83.67,11.82724398]
[1771600763524,101.51799255,83.729,83.606,47.84313376]
[1771600763525,11.82724398,83.68,83.648,11.95485845]
[1771600763704,11.82724398,83.68,83.65,11.82724398]
[1771600763910,1.28738904,83.679,83.64,11.77192869]
[1771600764227,13.05931773,83.67,83.641,11.95585896]
[1771600764433,13.05931773,83.67,83.599,47.84746229]
[1771600764434,11.94895887,83.69,83.631,1.34081188]
[1771600764733,11.77192869,83.68,83.64,11.77192869]
[1771600764929,11.77192869,83.68,83.621,41.85551475]
[1771600764930,11.77192869,83.68,83.65,11.77192869]
[1771600765104,23.72088756,83.69,83.66,11.77192869]
[1771600765310,11.94895887,83.69,83.66,11.77192869]
[1771600765510,23.72088756,83.69,83.66,11.77192869]
[1771600765717,11.77192869,83.68,83.65,11.77192869]
[1771600766120,11.94914444,83.688,83.652,11.9542868]
[1771600766328,11.77192869,83.68,83.643,11.95547494]
[1771600766510,11.77192869,83.68,83.65,11.77192869]
[1771600766932,11.77192869,83.67,83.643,11.95547494]
[1771600767226,11.77192869,83.66,83.634,11.95678808]
[1771600767432,1.28738904,83.669,83.634,11.95678808]
[1771600767627,11.77192869,83.65,83.62,11.77192869]
[1771600768417,1.28738904,83.673,83.63,11.77192869]
[1771600768620,11.77192869,83.67,83.63,13.11274057]
[1771600768927,1.28738904,83.639,83.6,11.77192869]
[1771600769128,1.28738904,83.639,83.59,1.34081188]
[1771600769129,11.77192869,83.63,83.591,1.34081188]
[1771600769331,11.77192869,83.62,83.59,11.96315348]
[1771600769708,11.77192869,83.62,83.59,23.73508217]
[1771600769913,1.28738904,83.671,83.611,1.34081188]
[1771600770111,11.77192869,83.65,83.62,11.77192869]
[1771600770351,11.77192869,83.64,83.61,11.96017162]
[1771600770910,11.77192869,83.63,83.603,11.96126976]
[1771600771412,13.05931773,83.63,83.59,11.77192869]
[1771600771611,11.77192869,83.62,83.592,11.96278673]
[1771600771834,11.77192869,83.61,83.592,11.96278673]
[1771600772015,11.77192869,83.61,83.589,53.82]
[1771600772412,11.96043488,83.609,83.58,0.1]
[1771600772626,11.77192869,83.6,83.58,0.1]
[1771600773023,11.77192869,83.59,83.58,0.1]
[1771600773331,11.77192869,83.59,83.562,11.9670996]
[1771600773510,11.77192869,83.61,83.571,1.34081188]
[1771600773715,11.77192869,83.6,83.571,1.34081188]
[1771600774114,1.28738904,83.605,83.562,11.9670996]
[1771600774425,11.77192869,83.6,83.57,11.77192869]
[1771600774819,11.77192869,83.59,83.562,11.9670996]
[1771600775427,11.77192869,83.6,83.563,1.34081188]
[1771600775626,1.28738904,83.644,83.581,1.34081188]
[1771600775926,35.93459902,83.7,83.58,11.77192869]
[1771600775927,11.77192869,83.65,83.62,11.77192869]
[1771600776330,1.28738904,83.674,83.64,11.77192869]
[1771600776530,1.28738904,83.674,83.631,1.34081188]
[1771600776531,11.95128655,83.673,83.631,1.34081188]
[1771600776729,11.77192869,83.67,83.631,1.34081188]
[1771600776937,11.95128655,83.673,83.62,11.77192869]
[1771600776938,11.77192869,83.65,83.62,11.77192869]
[1771600777123,11.77192869,83.65,83.624,11.95820649]
[1771600777324,11.77192869,83.65,83.611,1.40034908]
[1771600777526,11.77192869,83.65,83.62,11.77192869]
[1771600777849,11.77192869,83.66,83.63,11.77192869]
[1771600778223,11.77192869,83.65,83.611,1.40034908]
[1771600778419,1.37370783,83.648,83.612,11.96000574]
[1771600778626,11.77192869,83.64,83.612,11.96000574]
[1771600778925,11.77192869,83.64,83.6,11.77192869]
[1771600778926,11.77192869,83.63,83.6,11.77192869]
[1771600779129,1.37370783,83.694,83.621,1.40034908]
[1771600779334,11.77192869,83.67,83.64,11.77192869]
[1771600779727,13.14563652,83.67,83.63,11.77192869]
[1771600779934,11.77192869,83.65,83.61,11.77192869]
[1771600780135,11.77192869,83.65,83.62,11.77192869]
[1771600780446,1.37370783,83.629,83.585,1.40034908]
[1771600780636,1.37370783,83.629,83.59,11.77192869]
[1771600780838,11.77192869,83.62,83.59,41.6798124]
[1771600781145,11.77192869,83.64,83.601,1.40034908]
[1771600781339,47.78920221,83.701,83.59,29.90788371]
[1771600781340,11.95155573,83.672,83.631,1.40034908]
[1771600781641,11.77192869,83.7,83.631,1.40034908]
[1771600781642,11.77192869,83.67,83.64,11.77192869]
[1771600781842,11.77192869,83.67,83.59,29.90788371]
[1771600781843,11.77192869,83.66,83.62,11.77192869]
[1771600782051,11.77192869,83.65,83.61,11.77192869]
[1771600782245,11.77192869,83.65,83.609,0.28432314]
[1771600782246,1.37370783,83.667,83.63,11.77192869]
[1771600782438,1.37370783,83.667,83.62,1.40034908]
[1771600782439,11.95328655,83.659,83.622,1.40034908]
[1771600782645,11.77192869,83.65,83.622,1.40034908]
[1771600782940,11.77192869,83.65,83.621,11.9587185]
[1771600782941,11.77192869,83.65,83.611,11.96014878]
[1771600783148,11.77192869,83.65,83.611,41.86052074]
[1771600783443,11.77192869,83.65,83.611,11.96014878]
[1771600783839,41.83650294,83.659,83.602,11.96135485]
[1771600783840,11.77192869,83.64,83.602,11.96135485]
[1771600784046,11.77192869,83.63,83.602,11.96135485]
[1771600784753,11.77192869,83.62,83.594,11.96257792]
[1771600784940,11.77192869,83.61,83.584,11.96401225]
[1771600785246,11.77192869,83.62,83.585,1.40034908]
[1771600785553,11.77192869,83.6,83.574,11.96535803]